bitfinex/quotes_SOLUSD_20260211
["timestamp","ask_amount","ask_price","bid_price","bid_amount"]
[1770819845823,12.2064345,82.05,82.035,4.276054]
[1770819846041,4.45383048,82.049,82.035,4.276054]
[1770819846738,4.45383048,82.062,82.035,4.276054]
[1770819846934,4.45383048,82.062,82.037,12.18962175]
[1770819847244,49.94,82.072,82.04,12.2064345]
[1770819847245,4.45383048,82.069,82.04,12.2064345]
[1770819847845,4.45383048,82.079,82.04,12.2064345]
[1770819848037,4.45383048,82.098,82.06,12.2064345]
[1770819848847,4.45383048,82.098,82.06,53.2664345]
[1770819849041,16.66026498,82.11,82.06,41.16]
[1770819849246,4.45383048,82.11,82.081,42.64080602]
[1770819849551,12.2064345,82.12,82.081,42.64080602]
[1770819849552,4.45383048,82.118,82.081,42.64080602]
[1770819849931,4.45383048,82.109,82.077,41.06]
[1770819850140,4.45383048,82.099,82.068,41.06]
[1770819850340,4.45383048,82.099,82.06,53.2664345]
[1770819851371,4.45383048,82.099,82.061,42.65119849]
[1770819852151,4.45383048,82.097,82.061,42.65119849]
[1770819852540,4.45383048,82.089,82.061,42.65119849]
[1770819852836,4.45383048,82.079,82.057,12.18662237]
[1770819853030,4.45383048,82.069,82.023,0.1]
[1770819853229,4.45383048,82.069,82.036,12.18977034]
[1770819854647,4.45383048,82.059,82.03,0.2]
[1770819854838,4.45383048,82.081,82.04,12.3064345]
[1770819855021,4.45383048,82.079,82.041,0.1]
[1770819855427,4.45383048,82.069,82.041,12.18902743]
[1770819855643,4.45383048,82.069,82.036,12.18974042]
[1770819856146,4.45383048,82.059,82.03,0.2]
[1770819856356,4.45383048,82.059,82.03,12.39054923]
[1770819856736,4.45383048,82.049,82.03,0.2]
[1770819856941,4.45383048,82.049,82.021,12.19189276]
[1770819857249,4.45383048,82.039,82.022,12.19185096]
[1770819857443,4.45383048,82.039,82.004,47.05047015]
[1770819857631,12.2064345,82.06,82.011,4.36991448]
[1770819857831,12.2064345,82.06,82.021,4.36991448]
[1770819858052,4.45383048,82.059,82.021,4.36991448]
[1770819858452,4.45383048,82.074,82.031,4.36991448]
[1770819858660,12.2064345,82.07,82.031,4.36991448]
[1770819859153,4.45383048,82.059,82.014,4.36991448]
[1770819859352,4.45383048,82.049,82.014,4.36991448]
[1770819859555,4.45383048,82.061,82.03,12.2064345]
[1770819859944,54.27383048,82.081,82.04,12.2064345]
[1770819860133,4.45383048,82.079,82.041,4.36991448]
[1770819860334,4.41662388,82.069,82.032,41.12]
[1770819860751,4.41662388,82.069,82.021,4.07213215]
[1770819860953,4.41662388,82.069,82.03,12.24118579]
[1770819861154,4.41662388,82.059,82.023,4.07213215]
[1770819861659,4.41662388,82.059,82.024,12.19155369]
[1770819861860,24.42740048,82.06,82.024,12.19155369]
[1770819861861,4.41662388,82.057,82.024,12.19155369]
[1770819862150,4.41662388,82.049,82.01,12.24118579]
[1770819862354,4.41662388,82.049,82.024,12.19155369]
[1770819862853,4.41662388,82.057,82.024,12.19155369]
[1770819863058,4.41662388,82.057,82.024,42.67043791]
[1770819863554,4.41662388,82.057,82.024,46.74257006]
[1770819863757,4.41662388,82.073,82.031,4.07213215]
[1770819863966,4.41662388,82.083,82.05,12.24118579]
[1770819864337,12.24118579,82.08,82.046,41.12]
[1770819864536,4.41662388,82.079,82.046,41.12]
[1770819864744,4.41662388,82.079,82.047,4.07213215]
[1770819865830,4.17954545,82.1,82.051,4.41441264]
[1770819866035,4.17954545,82.089,82.052,41.12]
[1770819866253,4.17954545,82.089,82.053,41.12]
[1770819866750,4.17954545,82.079,82.047,41.14]
[1770819867134,4.17954545,82.079,82.05,12.24118579]
[1770819867554,4.17954545,82.077,82.051,12.18754189]
[1770819867756,4.17954545,82.087,82.052,4.41441264]
[1770819868634,12.24118579,82.08,82.052,4.41441264]
[1770819869040,4.17954545,82.087,82.052,4.41441264]
[1770819869938,4.17954545,82.079,82.053,12.18724482]
[1770819871151,4.17954545,82.069,82.044,12.18851048]
[1770819871363,4.17954545,82.069,82.048,12.187979]
[1770819872145,4.17954545,82.069,82.04,12.18917601]
[1770819872346,4.17954545,82.069,82.04,42.66211603]
[1770819872745,4.17954545,82.069,82.04,47.07652867]
[1770819872946,4.17954545,82.069,82.04,16.60358865]
[1770819873250,4.17954545,82.078,82.041,4.41441264]
[1770819873457,4.17954545,82.078,82.039,41.18]
[1770819873765,4.17954545,82.078,82.013,41.22]
[1770819873766,4.17954545,82.049,82.013,41.22]
[1770819874070,4.17954545,82.029,82.0,12.19512195]
[1770819874254,4.17954545,82.029,81.992,4.41441264]
[1770819875967,4.17954545,82.028,81.992,4.41441264]
[1770819876167,4.17954545,82.028,81.993,42.68657079]
[1770819877067,4.17954545,82.038,81.993,83.92657079]
[1770819877254,4.17954545,82.029,81.993,42.68657079]
[1770819877582,4.17954545,82.029,81.994,41.26]
[1770819877767,16.42073124,82.04,81.995,4.41441264]
[1770819877946,4.17954545,82.039,82.0,16.65559843]
[1770819878152,4.17954545,82.029,82.001,12.19497323]
[1770819879553,4.17954545,82.029,81.995,47.09994224]
[1770819880256,4.17954545,82.028,81.995,12.1958656]
[1770819880689,12.18851749,82.045,81.996,4.41441264]
[1770819880857,4.17954545,82.039,81.996,4.41441264]
[1770819881178,12.24118579,82.02,81.995,42.6855296]
[1770819881353,4.17954545,82.019,81.995,42.6855296]
[1770819881967,4.17954545,82.038,81.996,4.41441264]
[1770819882171,12.24118579,82.03,81.996,4.41441264]
[1770819882652,4.17954545,82.029,81.996,4.41441264]
[1770819883272,4.17954545,82.053,82.011,4.41441264]
[1770819883451,4.17954545,82.053,82.013,4.41441264]
[1770819883658,12.24118579,82.05,82.013,4.41441264]
[1770819883883,4.17954545,82.049,82.015,4.41441264]
[1770819884261,4.17954545,82.048,82.015,4.41441264]
[1770819884459,4.17954545,82.039,82.014,12.19304021]
[1770819884674,4.17954545,82.019,82.001,12.19496186]
[1770819884875,4.17954545,82.019,82.004,12.19440609]
[1770819885057,4.17954545,82.019,81.993,4.41441264]
[1770819885374,16.42073124,82.03,81.993,4.41441264]
[1770819885567,4.17954545,82.029,81.993,4.41441264]
[1770819885767,12.24118579,82.02,81.993,4.41441264]
[1770819886077,4.17954545,82.019,81.995,12.19572282]
[1770819886379,12.24118579,82.01,81.994,12.19601434]
[1770819886686,4.17954545,82.019,81.994,12.19601434]
[1770819887177,4.17954545,82.03,81.995,4.41441264]
[1770819887371,16.42073124,82.03,81.995,4.41441264]
[1770819887568,4.17954545,82.038,81.995,4.41441264]
[1770819887773,4.17954545,82.038,81.997,4.41441264]
[1770819887774,12.24118579,82.03,81.997,4.41441264]
[1770819887977,4.17954545,82.029,81.997,4.41441264]
[1770819888481,4.17954545,82.029,81.996,42.68500902]
[1770819888482,4.17954545,82.029,81.996,12.19571686]
[1770819888664,4.17954545,82.019,81.996,12.19571686]
[1770819889082,4.17954545,82.029,81.996,12.19571686]
[1770819889276,12.24118579,82.02,81.996,12.19571686]
[1770819889583,4.17954545,82.019,81.996,12.19571686]
[1770819889882,4.17954545,82.019,81.991,47.10202468]
[1770819890080,4.17954545,82.019,81.992,4.41441264]
[1770819890377,12.24118579,82.02,81.992,4.41441264]
[1770819890977,4.09820202,82.019,81.992,4.41441264]
[1770819891978,4.09820202,82.019,81.993,12.19616308]
[1770819892679,12.24118579,82.01,81.993,12.19616308]
[1770819892985,4.09820202,81.999,81.97,0.2]
[1770819893182,4.09820202,82.008,81.971,4.26911731]
[1770819893483,4.09820202,82.008,81.983,12.19751035]
[1770819893689,12.24118579,82.0,81.983,12.19751035]
[1770819893873,4.09820202,82.008,81.983,12.19751035]
[1770819894192,16.29228301,82.007,81.978,4.26911731]
[1770819894479,4.09820202,82.006,81.978,4.26911731]
[1770819895568,4.09820202,82.027,81.978,4.26911731]
[1770819895882,12.24118579,82.02,81.981,4.26911731]
[1770819896087,16.33938781,82.02,81.981,4.26911731]
[1770819896398,4.09820202,82.018,81.983,4.26911731]
[1770819897093,12.24118579,82.01,81.983,4.26911731]
[1770819897395,4.09820202,82.009,81.983,4.26911731]
[1770819898268,4.09820202,82.009,81.984,12.19750195]
[1770819898469,4.09820202,82.019,81.985,4.26911731]
[1770819898980,4.09820202,82.018,81.985,3.76911731]
[1770819899885,4.09820202,82.018,81.984,42.69125682]
[1770819900303,4.61729252,82.038,81.984,42.69125682]
[1770819900304,12.24118579,82.05,82.005,4.26911731]
[1770819900602,12.24118579,82.04,82.007,4.26911731]
[1770819900767,42.65171824,82.06,81.989,4.26911731]
[1770819900768,12.24118579,82.02,81.989,4.26911731]
[1770819901093,12.24118579,82.03,82.002,12.19476294]
[1770819901410,12.24118579,82.03,81.98,12.24118579]
[1770819901411,12.24118579,82.01,81.96,4.26911731]
[1770819901694,12.24118579,82.02,81.97,12.39949557]
[1770819901695,12.24118579,81.99,81.97,12.39949557]
[1770819902188,4.09820202,81.989,81.97,0.2]
[1770819902390,12.24118579,81.98,81.951,4.26911731]
[1770819902571,4.09820202,81.979,81.951,4.26911731]
[1770819902785,4.09820202,81.979,81.94,0.1]
[1770819902786,4.09820202,81.969,81.94,0.1]
[1770819902972,4.09820202,81.949,81.911,4.26911731]
[1770819903167,4.09820202,81.949,81.92,12.24118579]
[1770819903400,91.47680147,81.988,81.941,12.2039028]
[1770819903401,16.33938781,81.97,81.941,12.2039028]
[1770819903800,12.24118579,81.97,81.942,4.26911731]
[1770819904091,16.33938781,81.99,81.951,4.26911731]
[1770819904271,12.24118579,81.99,81.951,4.26911731]
[1770819904596,12.24118579,81.99,81.953,4.26911731]
[1770819904794,12.1967581,81.989,81.953,4.26911731]
[1770819905301,4.61729252,82.018,81.953,4.26911731]
[1770819905488,12.24118579,82.0,81.961,4.26911731]
[1770819905791,12.24118579,82.01,81.971,4.26911731]
[1770819906174,4.09820202,82.009,81.971,4.26911731]
[1770819906393,42.67407975,82.017,81.981,4.26911731]
[1770819906394,4.09820202,82.016,81.981,4.26911731]
[1770819906580,12.24118579,82.01,81.981,4.26911731]
[1770819907193,4.09820202,81.999,81.966,12.20014821]
[1770819907382,4.09820202,82.006,81.963,4.26911731]
[1770819907790,4.09820202,82.006,81.96,12.24118579]
[1770819907791,4.09820202,82.006,81.972,12.19916087]
[1770819908086,4.09820202,82.0,81.972,12.19916087]
[1770819908595,16.29345552,82.0,81.972,4.26911731]
[1770819909186,12.19449252,82.005,81.972,4.26911731]
[1770819910296,49.52,82.016,81.972,4.26911731]
[1770819910496,4.09820202,82.015,81.972,4.26911731]
[1770819910702,5.36086188,82.043,81.949,97.62072208]
[1770819910703,4.09820202,82.024,81.981,4.26911731]
[1770819910910,4.09820202,82.024,81.991,4.26911731]
[1770819911090,4.09820202,82.032,82.001,4.26911731]
[1770819911586,4.09820202,82.029,81.992,4.26911731]
[1770819912705,49.52,82.044,82.001,4.26911731]
[1770819912910,12.18833591,82.046,82.001,4.26911731]
[1770819912911,4.09820202,82.043,82.001,4.26911731]
[1770819913282,12.24118579,82.04,82.001,4.26911731]
[1770819913585,12.24118579,82.04,82.0,12.24118579]
[1770819913586,4.09820202,82.05,82.011,4.26911731]
[1770819913780,4.09820202,82.049,82.011,4.26911731]
[1770819914901,4.09820202,82.047,82.012,12.19333756]
[1770819915101,4.09820202,82.047,82.012,16.46245487]
[1770819915305,4.09820202,82.047,82.013,4.26911731]
[1770819915794,12.18742692,82.052,82.021,4.26911731]
[1770819916106,4.09820202,82.049,82.012,16.46245487]
[1770819916297,4.09820202,82.049,82.013,4.26911731]
[1770819917301,12.18798751,82.048,82.014,12.19304021]
[1770819917606,4.09820202,82.047,82.015,4.26911731]
[1770819919305,4.09820202,82.047,82.017,4.26911731]
[1770819919603,4.09820202,82.063,82.017,4.26911731]
[1770819919783,4.09820202,82.049,82.017,4.26911731]
[1770819919988,4.09820202,82.056,82.017,4.26911731]
[1770819920205,4.09820202,82.056,82.021,4.26911731]
[1770819920388,49.56,82.057,82.031,4.13259374]
[1770819920586,4.28402493,82.073,82.041,4.13259374]
[1770819921289,12.18486882,82.069,82.041,4.13259374]
[1770819921490,4.28402493,82.068,82.028,4.13259374]
[1770819921695,12.24045038,82.06,82.03,12.19060485]
[1770819922106,4.28402493,82.061,82.033,12.19010301]
[1770819922289,12.18422859,82.074,82.038,4.13259374]
[1770819922691,4.28402493,82.073,82.038,4.13259374]
[1770819922998,4.28402493,82.059,82.026,4.13259374]
[1770819923189,49.56,82.058,82.027,12.19099885]
[1770819923496,4.28402493,82.056,82.03,12.19054644]
[1770819923906,49.56,82.058,82.031,4.13259374]
[1770819925290,61.7465182,82.058,82.031,4.13259374]
[1770819925490,61.7465182,82.058,82.031,16.3230146]
[1770819926027,61.7465182,82.058,81.99,12.24045038]
[1770819926028,4.28402493,82.039,81.99,12.24045038]
[1770819926204,4.09286603,82.029,81.995,12.19583376]
[1770819926427,12.24045038,82.03,81.995,12.19583376]
[1770819926428,4.09286603,82.027,81.995,12.19583376]
[1770819926808,4.09286603,82.027,81.995,16.38877409]
[1770819927019,4.09286603,82.027,81.996,4.19294033]
[1770819927193,49.58,82.026,81.996,4.19294033]
[1770819927388,49.58,82.026,81.998,4.19294033]
[1770819927705,49.58,82.026,82.001,4.19294033]
[1770819927903,49.58,82.026,82.011,4.19294033]
[1770819928111,61.7690764,82.041,82.011,4.19294033]
[1770819928309,49.58,82.041,82.011,4.19294033]
[1770819928511,4.09286603,82.04,82.011,4.19294033]
[1770819928812,4.09286603,82.04,82.001,3.75463293]
[1770819929710,4.09286603,82.038,82.002,12.19482451]
[1770819929913,4.09286603,82.029,82.002,12.19482451]
[1770819930411,49.6,82.03,82.003,3.75463293]
[1770819930617,12.18932458,82.039,82.01,15.99508331]
[1770819930816,4.09286603,82.037,82.001,3.75463293]
[1770819930997,4.09286603,82.037,82.001,12.19487935]
[1770819932104,4.09286603,82.035,82.001,12.19487935]
[1770819932700,49.6,82.038,82.002,3.75463293]
[1770819932901,4.09286603,82.037,82.002,3.75463293]
[1770819933098,12.24045038,82.03,81.995,12.19583884]
[1770819933414,4.09286603,82.029,81.998,12.19535093]
[1770819933598,4.09286603,82.029,82.001,12.19497323]
[1770819933798,4.09286603,82.029,81.997,12.1954933]
[1770819933997,4.09286603,82.029,82.0,12.19506108]
[1770819934209,4.09286603,82.029,81.991,30.49109534]
[1770819934210,4.09286603,82.027,81.991,42.68755592]
[1770819936119,12.24045038,82.01,81.982,12.1977148]
[1770819936322,53.73286603,82.009,81.971,3.75463293]
[1770819936498,53.73286603,82.009,81.991,12.19646058]
[1770819936499,4.09286603,82.008,81.991,12.19646058]
[1770819937518,4.09286603,82.008,81.966,3.75463293]
[1770819937718,49.64,82.009,81.94,45.11463293]
[1770819937719,4.09286603,81.999,81.94,45.11463293]
[1770819937918,4.09286603,82.008,81.96,12.24045038]
[1770819938116,4.09286603,81.999,81.961,3.75463293]
[1770819938314,4.09286603,81.997,81.963,3.75463293]
[1770819939223,4.09286603,82.015,81.963,3.75463293]
[1770819939422,12.19274287,82.016,81.962,42.70271588]
[1770819939423,4.09286603,82.013,81.98,12.24045038]
[1770819939626,4.09286603,82.013,81.979,3.75463293]
[1770819940223,12.19333756,82.012,81.98,12.19809709]
[1770819940429,4.09286603,82.011,81.98,12.19809709]
[1770819941450,49.64,82.013,81.98,12.19809709]
[1770819941451,4.09286603,82.009,81.98,12.19809709]
[1770819942327,4.09286603,82.009,81.98,15.95273002]
[1770819942627,4.09286603,82.009,81.98,12.19809709]
[1770819942821,4.09286603,82.009,81.98,24.43854747]
[1770819943124,49.64,82.013,81.981,3.75463293]
[1770819943526,49.64,82.013,81.982,12.19779951]
[1770819943821,30.47682078,82.03,81.982,12.19779951]
[1770819943822,4.09286603,82.039,81.991,3.75463293]
[1770819944023,4.09286603,82.039,81.982,42.6922983]
[1770819944024,5.36086188,82.053,82.021,3.75463293]
[1770819944232,4.09286603,82.052,82.02,12.24045038]
[1770819944410,4.09286603,82.052,82.021,3.75463293]
[1770819944606,4.09286603,82.039,82.01,41.34]
[1770819945830,4.09286603,82.049,82.012,3.75463293]
[1770819946422,4.09286603,82.039,82.01,41.34]
[1770819946621,4.09286603,82.029,82.01,41.34]
[1770819946814,4.09286603,82.029,81.997,12.1954346]
[1770819947125,4.09286603,82.029,82.001,12.19497198]
[1770819947329,4.09286603,82.048,82.011,12.19348623]
[1770819947532,4.09286603,82.039,82.007,12.1940775]
[1770819947732,4.09286603,82.075,82.012,3.75463293]
[1770819947916,4.09286603,82.089,82.041,3.75463293]
[1770819948231,4.09286603,82.069,82.041,32.02]
[1770819948433,4.09286603,82.069,82.031,3.75463293]
[1770819948630,4.09286603,82.069,82.037,41.34]
[1770819949617,4.09286603,82.069,82.034,45.09463293]
[1770819949930,4.09286603,82.069,82.035,3.75463293]
[1770819950322,4.09286603,82.069,82.036,12.18977034]
[1770819950623,4.49863663,82.079,82.036,42.6641962]
[1770819950934,4.49863663,82.069,82.037,3.75463293]
[1770819951237,1e-08,82.09,82.061,3.75463293]
[1770819951415,12.24045038,82.12,82.08,12.24045038]
[1770819951732,42.61069649,82.139,82.07,12.24045038]
[1770819951917,42.61069649,82.139,82.071,4.09669692]
[1770819952117,12.24045038,82.12,82.071,4.09669692]
[1770819952311,12.24045038,82.12,82.08,12.24045038]
[1770819952832,12.24045038,82.12,82.073,4.09669692]
[1770819953024,42.61069649,82.139,82.081,4.09669692]
[1770819953227,0.2,82.14,82.091,4.09669692]
[1770819953427,4.49863663,82.129,82.073,4.09669692]
[1770819953735,4.49863663,82.119,82.08,12.24045038]
[1770819954030,4.49863663,82.119,82.081,4.09669692]
[1770819954232,4.49863663,82.119,82.082,12.18293901]
[1770819954431,4.49863663,82.119,82.09,12.24045038]
[1770819954734,4.49863663,82.135,82.091,4.09669692]
[1770819955037,4.49863663,82.135,82.082,42.64028654]
[1770819955038,4.61729252,82.15,82.119,4.09669692]
[1770819955241,4.49863663,82.149,82.13,12.24045038]
[1770819955418,4.49863663,82.149,82.116,4.09669692]
[1770819955617,4.49863663,82.149,82.11,12.24045038]
[1770819955935,4.49863663,82.149,82.12,12.24045038]
[1770819956341,4.49863663,82.149,82.12,28.51433854]
[1770819956525,4.49863663,82.149,82.12,16.27388816]
[1770819956728,4.49863663,82.149,82.12,28.51433854]
[1770819956933,16.67178752,82.148,82.111,4.09669692]
[1770819957126,4.49863663,82.147,82.111,4.09669692]
[1770819957327,4.49863663,82.147,82.1,16.3371473]
[1770819957534,4.49863663,82.139,82.101,4.09669692]
[1770819958119,4.49863663,82.139,82.103,12.17980126]
[1770819958333,16.67325716,82.139,82.103,12.17980126]
[1770819958637,4.49863663,82.138,82.103,12.17980126]
[1770819959421,4.49863663,82.138,82.104,4.09669692]
[1770819960125,4.49863663,82.137,82.104,4.09669692]
[1770819960442,4.49863663,82.127,82.091,4.09669692]
[1770819960845,4.49863663,82.159,82.101,4.09669692]
[1770819961137,4.49863663,82.149,82.111,4.09669692]
[1770819961542,4.49863663,82.129,82.093,4.09669692]
[1770819961741,4.49863663,82.129,82.09,12.24045038]
[1770819961742,4.49863663,82.159,82.121,4.09669692]
[1770819962518,4.49863663,82.149,82.122,12.17700494]
[1770819962722,4.49863663,82.149,82.117,12.17763593]
[1770819962928,4.49863663,82.139,82.107,12.17910107]
[1770819963547,4.49863663,82.129,82.087,41.3]
[1770819963741,4.49863663,82.109,82.079,12.18333277]
[1770819964142,4.49863663,82.109,82.083,12.18273517]
[1770819964449,4.49863663,82.107,82.071,30.4611909]
[1770819964750,4.49863663,82.079,82.054,12.18698333]
[1770819964952,4.49863663,82.079,82.037,30.47399186]
[1770819964953,4.49863663,82.069,82.043,12.18862279]
[1770819965123,4.49863663,82.069,82.046,12.18822856]
[1770819965323,4.49863663,82.069,82.054,12.18707733]
[1770819965540,12.24045038,82.06,82.037,12.18954213]
[1770819965743,4.49863663,82.069,82.037,42.66359652]
[1770819965923,4.49863663,82.069,82.038,4.09669692]
[1770819966442,4.49863663,82.069,82.04,4.09669692]
[1770819966644,4.49863663,82.109,82.061,4.09669692]
[1770819966831,12.24045038,82.1,82.061,4.09669692]
[1770819967024,4.49863663,82.099,82.061,4.09669692]
[1770819967225,12.24045038,82.09,82.061,4.09669692]
[1770819967426,4.49863663,82.079,82.051,4.09669692]
[1770819967948,4.49863663,82.079,82.04,4.09669692]
[1770819968124,4.49863663,82.079,82.041,4.09669692]
[1770819968326,4.49863663,82.092,82.051,4.09669692]
[1770819968525,12.24045038,82.09,82.053,4.09669692]
[1770819968960,4.49863663,82.089,82.053,4.09669692]
[1770819969129,4.49863663,82.079,82.052,12.18739336]
[1770819970952,4.49863663,82.079,82.042,30.47217996]
[1770819970953,16.73908701,82.07,82.042,12.18887886]
[1770819972047,4.49863663,82.059,82.03,41.34]
[1770819972254,12.24045038,82.04,82.022,12.19181391]
[1770819972546,42.64236457,82.078,82.023,4.09669692]
[1770819972547,4.49863663,82.059,82.023,4.09669692]
[1770819973043,4.49863663,82.049,82.024,12.19155369]
[1770819973440,12.24045038,82.06,82.025,4.09669692]
[1770819973632,12.24045038,82.06,82.031,4.09669692]
[1770819974150,4.49863663,82.059,82.031,4.09669692]
[1770819974748,4.49863663,82.059,82.024,42.67043791]
[1770819974953,4.49863663,82.059,82.025,4.09669692]
[1770819975951,4.49863663,82.059,82.027,4.09669692]
[1770819976150,12.24045038,82.05,82.026,12.19125643]
[1770819976352,4.49863663,82.057,82.026,12.19125643]
[1770819976653,4.49863663,82.057,82.026,16.28795335]
[1770819976853,12.24045038,82.05,82.021,12.19194805]
[1770819977037,4.49863663,82.049,82.025,12.19139249]
[1770819977438,12.24045038,82.05,82.026,4.09669692]
[1770819978657,16.73908701,82.05,82.017,4.09669692]
[1770819979729,49.2,82.065,82.016,30.48163078]
[1770819979930,49.2,82.065,82.031,4.09669692]
[1770819980149,4.49863663,82.059,82.022,4.09669692]
[1770819980353,4.49863663,82.049,82.02,41.38]
[1770819980655,4.49863663,82.049,82.021,12.1919996]
[1770819980855,4.270749,82.039,82.009,4.04429869]
[1770819981239,12.24045038,82.04,81.993,12.19602648]
[1770819981240,4.270749,82.019,81.993,12.19602648]
[1770819981443,4.270749,82.009,81.972,4.04429869]
[1770819981651,4.270749,82.009,81.986,12.19714131]
[1770819981950,4.270749,82.009,81.982,12.19775481]
[1770819982155,4.270749,82.009,81.981,4.04429869]
[1770819982648,4.270749,82.007,81.98,0.1]
[1770819983459,12.26098489,82.0,81.98,0.1]
[1770819983638,4.270749,82.007,81.98,0.1]
[1770819984850,16.46497869,82.006,81.98,0.1]
[1770819985156,4.270749,82.006,81.98,0.1]
[1770819986647,3.89970007,82.005,81.98,0.1]
[1770819986849,12.19452709,82.004,81.98,0.1]
[1770819987038,3.89970007,82.004,81.98,0.1]
[1770819987356,12.26098489,82.01,81.98,4.00844263]
[1770819987870,16.16068496,82.02,81.981,3.90844263]
[1770819988157,3.89970007,82.02,81.981,3.90844263]
[1770819988359,30.47367742,82.039,82.001,3.90844263]
[1770819988360,3.89970007,82.039,82.001,3.90844263]
[1770819989158,3.89970007,82.039,82.003,3.90844263]
[1770819989362,3.89970007,82.037,82.003,3.90844263]
[1770819990061,3.89970007,82.037,82.002,42.6818858]
[1770819990559,3.89970007,82.019,81.981,3.90844263]
[1770819990858,16.16068496,82.01,81.981,3.90844263]
[1770819991056,3.89970007,82.01,81.991,12.196387]
[1770819991360,12.26098489,82.03,81.991,3.90844263]
[1770819991543,3.89970007,82.032,82.001,3.90844263]
[1770819991858,49.16,82.046,82.001,3.90844263]
[1770819991859,3.89970007,82.042,82.001,3.90844263]
[1770819992656,12.26098489,82.05,82.001,3.90844263]
[1770819992859,12.26098489,82.07,82.031,3.90844263]
[1770819993056,7.19685781,82.11,81.982,298.84608812]
[1770819993057,3.89970007,82.101,82.061,3.90844263]
[1770819993259,3.89970007,82.12,82.09,12.26098489]
[1770819993436,3.89970007,82.12,82.091,3.90844263]
[1770819994045,3.89970007,82.109,82.066,3.90844263]
[1770819994264,3.89970007,82.109,82.07,12.26098489]
[1770819994462,3.89970007,82.099,82.062,12.18590821]
[1770819994675,3.89970007,82.1,82.063,3.90844263]
[1770819994963,3.89970007,82.099,82.063,3.90844263]
[1770819995158,3.89970007,82.099,82.065,3.90844263]
[1770819995461,12.18056469,82.098,82.065,3.90844263]
[1770819995664,3.89970007,82.097,82.064,12.18561123]
[1770819996066,3.89970007,82.089,82.059,12.1863079]
[1770819996360,3.89970007,82.089,82.063,12.18570322]
[1770819998457,3.89970007,82.099,82.061,3.90844263]
[1770819998648,3.89970007,82.108,82.08,12.26098489]
[1770819998862,3.89970007,82.108,82.071,3.90844263]
[1770819999749,49.14,82.116,82.062,41.38]
[1770819999750,3.89970007,82.099,82.062,41.38]
[1770820000158,3.89970007,82.099,82.06,16.16942752]
[1770820000469,3.89970007,82.099,82.061,3.90844263]
[1770820000975,3.89970007,82.109,82.07,12.26098489]
[1770820001159,3.89970007,82.117,82.081,3.90844263]
[1770820001667,3.89970007,82.117,82.062,42.65067874]
[1770820001668,3.89970007,82.129,82.091,3.90844263]
[1770820001856,3.89970007,82.129,82.1,16.16942752]
[1770820002045,49.1,82.147,82.087,41.38]
[1770820002046,12.17611533,82.128,82.09,16.16942752]
[1770820002247,3.89970007,82.127,82.091,3.90844263]
[1770820002460,3.89970007,82.127,82.1,12.26098489]
[1770820002667,3.89970007,82.127,82.091,3.90844263]
[1770820003059,16.16068496,82.17,82.121,3.3866341]
[1770820003248,3.89970007,82.169,82.121,3.3866341]
[1770820003455,3.89970007,82.167,82.121,3.3866341]
[1770820003770,12.26098489,82.15,82.111,3.37310151]
[1770820003973,3.89970007,82.129,82.093,42.63457297]
[1770820004957,3.89970007,82.129,82.093,12.18130656]
[1770820005177,3.89970007,82.127,82.093,12.18130656]
[1770820005365,3.89970007,82.119,82.082,33.81704332]
[1770820005571,3.89970007,82.119,82.094,12.18115818]
[1770820006579,3.89970007,82.129,82.1,12.26098489]
[1770820006776,12.17512303,82.135,82.1,15.5944141]
[1770820007156,12.17512303,82.135,82.101,12.1801196]
[1770820007565,12.17512303,82.135,82.102,3.32050773]
[1770820007875,49.06,82.137,82.102,3.32050773]
[1770820008079,61.2348759,82.137,82.102,3.32050773]
[1770820008473,49.06,82.137,82.111,3.30291704]
[1770820008658,3.89970007,82.148,82.12,12.26098489]
[1770820008854,16.07299915,82.147,82.111,3.30291704]
[1770820009061,3.89970007,82.146,82.111,3.30291704]
[1770820009256,3.89970007,82.146,82.112,12.17848791]
[1770820009658,3.89970007,82.144,82.112,12.17848791]
[1770820009858,3.89970007,82.139,82.107,12.17912182]
[1770820010367,3.89970007,82.139,82.112,12.17848791]
[1770820010876,49.08,82.146,82.12,12.26098489]
[1770820011864,12.26098489,82.16,82.12,12.26098489]
[1770820011865,3.70394097,82.157,82.121,42.62003628]
[1770820012078,3.70394097,82.157,82.122,3.23455168]
[1770820012277,12.17076579,82.165,82.122,3.23455168]
[1770820012581,3.70394097,82.164,82.131,3.21794828]
[1770820013083,3.70394097,82.164,82.123,41.4]
[1770820013263,3.70394097,82.164,82.13,12.26098489]
[1770820014165,12.17092852,82.163,82.131,12.17567057]
[1770820014466,3.70394097,82.162,82.131,12.17567057]
[1770820014976,3.70394097,82.159,82.127,12.17624894]
[1770820015172,67.40428572,104.83,82.141,3.18531141]
[1770820015173,49.12,82.17,82.141,3.18531141]
[1770820015370,12.1699901,82.17,82.141,3.18531141]
[1770820015687,3.70394097,82.169,82.14,12.26098489]
[1770820015859,3.70394097,82.168,82.077,48.73420317]
[1770820016065,3.70394097,82.159,82.131,12.17567057]